[Event "HUN-ch Rapid 2019"]
[Site "Ajka"]
[Date "2019.07.21"]
[Round "11.17"]
[White "Dankhazi, Andras"]
[Black "Udvardi, Zalan"]
[Result "1-0"]
[ECO "A61"]
[WhiteElo "2277"]
[BlackElo "2193"]
[Annotator "NA"]
[PlyCount "125"]
[EventDate "2019.07.18"]
[EventType "swiss"]
[EventCountry "HUN"]
[SourceTitle "playchess.com"]
[Source "ChessBase"]
[SourceQuality "1"]
[TimeControl "1200+5"]

1. d4 {[%emt 0:00:05]} Nf6 {[%emt 0:00:01]} 2. c4 {[%emt 0:00:02]} c5 {[%emt 0:00:02]} 3. d5 {[%emt 0:00:02]} e6 {[%emt 0:00:01]} 4. Nc3 {[%emt 0:00:01]} exd5 {[%emt 0:00:01]} 5. cxd5 {[%emt 0:00:02]} d6 {[%emt 0:00:01]} 6. Nf3 {[%emt 0:00:02]} g6 {[%emt 0:00:02]} 7. Bf4 {[%emt 0:00:09]} Bg7 {[%emt 0:00:40]} 8. Qa4+ {[%emt 0:00:05]} Bd7 {[%emt 0:00:01]} 9. Qb3 {[%emt 0:00:01]} Qc7 {[%emt 0:00:10]} 10. e4 {[%emt 0:00:45]} O-O {[%emt 0:00:20]} 11. Nd2 {[%emt 0:00:40]} Nh5 {[%emt 0:01:15]} 12. Be3 {[%emt 0:00:10]} f5 {[%emt 0:00:09]} 13. exf5 {[%emt 0:00:19]} gxf5 {[%emt 0:00:31]} 14. Be2 {[%emt 0:00:45]} f4 {[%emt 0:00:54]} 15. Bxh5 {[%emt 0:00:01]} fxe3 {[%emt 0:00:01]} 16. fxe3 {[%emt 0:00:02]} b5 {[%emt 0:00:38]} 17. Nxb5 {[%emt 0:02:31]} Bxb5 {[%emt 0:00:04]} 18. Qxb5 {[%emt 0:00:01]} Qe7 {[%emt 0:00:11]} 19. O-O-O {[%emt 0:04:12]} Nd7 {[%emt 0:00:04]} 20. Nc4 {[%emt 0:06:03]} Rab8 {[%emt 0:01:34]} 21. Qc6 {[%emt 0:00:01]} Ne5 {[%emt 0:01:14]} 22. Qxd6 {[%emt 0:01:16]} Qg5 {[%emt 0:00:00]} 23. Be2 {[%emt 0:00:59]} Nxc4 {[%emt 0:01:29]} 24. Bxc4 {[%emt 0:00:02]} Qxe3+ {[%emt 0:00:33]} 25. Rd2 {[%emt 0:00:02]} Bxb2+ {[%emt 0:00:09]} 26. Kd1 {[%emt 0:00:01]} Be5 {[%emt 0:00:05]} 27. Qe6+ {[%emt 0:00:15]} Kh8 {[%emt 0:00:00]} 28. Bb3 {[%emt 0:00:13]} c4 {[%emt 0:00:25]} 29. Re1 {[%emt 0:00:03]} Qxe1+ {[%emt 0:03:22]} 30. Kxe1 {[%emt 0:00:02]} Rbe8 {[%emt 0:00:08]} 31. Ba4 {[%emt 0:00:57]} Rxe6 {[%emt 0:00:51]} 32. dxe6 {[%emt 0:00:01]} Bf6 {[%emt 0:00:04]} 33. Rd7 {[%emt 0:00:08]} Re8 {[%emt 0:01:48]} 34. Rxh7+ {[%emt 0:00:15]} Kxh7 {[%emt 0:00:00]} 35. Bxe8 {[%emt 0:00:02]} Kh6 {[%emt 0:00:13]} 36. Bb5 {[%emt 0:00:28]} c3 {[%emt 0:01:34]} 37. Ba4 {[%emt 0:00:01]} Kg5 {[%emt 0:00:32]} 38. Kf2 {[%emt 0:00:46]} Kf5 {[%emt 0:00:19]} 39. Kf3 {[%emt 0:00:08]} Kxe6 {[%emt 0:00:25]} 40. Ke4 {[%emt 0:00:01]} Be5 {[%emt 0:00:34]} 41. g3 {[%emt 0:00:10]} Kf6 {[%emt 0:00:24]} 42. Bc2 {[%emt 0:00:05]} Bc7 {[%emt 0:00:31]} 43. Kf3 {[%emt 0:00:01]} Kg7 {[%emt 0:01:22]} 44. h4 {[%emt 0:00:06]} Bd8 {[%emt 0:00:09]} 45. Kg4 {[%emt 0:00:15]} Bc7 {[%emt 0:00:21]} 46. Kh3 {[%emt 0:00:10]} Kh6 {[%emt 0:00:22]} 47. g4 {[%emt 0:00:01]} Bf4 {[%emt 0:00:03]} 48. g5+ {[%emt 0:00:07]} Kh5 {[%emt 0:00:01]} 49. Bd1+ Kg6 50. Kg4 {[%emt 0:00:03]} Be3 {[%emt 0:00:18]} 51. h5+ {[%emt 0:00:01]} Kg7 {[%emt 0:00:00]} 52. Kf5 {[%emt 0:00:02]} Bd4 {[%emt 0:00:14]} 53. Bc2 {[%emt 0:00:02]} Kf8 {[%emt 0:00:09]} 54. h6 {[%emt 0:00:02]} Bh8 {[%emt 0:00:03]} 55. Ke6 {[%emt 0:00:05]} Bd4 {[%emt 0:00:02]} 56. g6 {[%emt 0:00:01]} Kg8 {[%emt 0:00:02]} 57. Kf5 {[%emt 0:00:07]} Kh8 {[%emt 0:00:13]} 58. Bb3 {[%emt 0:00:15]} a5 {[%emt 0:00:05]} 59. Ke4 {[%emt 0:00:08]} Bf6 {[%emt 0:00:02]} 60. a4 {[%emt 0:00:02]} c2 {[%emt 0:00:06]} 61. Bxc2 {[%emt 0:00:01]} Bg5 {[%emt 0:00:02]} 62. g7+ {[%emt 0:00:03]} Kh7 {[%emt 0:00:02]} 63. Bb3 {[%emt 0:00:00]} 1-0

[Event "HUN-ch Rapid 2019"]
[Site "Ajka"]
[Date "2019.07.21"]
[Round "11.18"]
[White "Varga, Klara"]
[Black "Hoang, Thanh Trang"]
[Result "1-0"]
[ECO "A10"]
[WhiteElo "2146"]
[BlackElo "2414"]
[Annotator "NA"]
[PlyCount "63"]
[EventDate "2019.07.18"]
[EventType "swiss"]
[EventCountry "HUN"]
[SourceTitle "playchess.com"]
[Source "ChessBase"]
[SourceQuality "1"]
[TimeControl "1200+5"]

1. c4 {[%emt 0:00:01]} f5 {[%emt 0:00:02]} 2. Nc3 {[%emt 0:00:01]} Nf6 {[%emt 0:00:03]} 3. Nf3 {[%emt 0:00:03]} g6 {[%emt 0:00:07]} 4. g3 {[%emt 0:00:02]} Bg7 {[%emt 0:00:01]} 5. Bg2 {[%emt 0:00:01]} O-O {[%emt 0:00:04]} 6. O-O {[%emt 0:00:02]} d6 {[%emt 0:00:03]} 7. d3 {[%emt 0:00:06]} Nc6 {[%emt 0:00:50]} 8. e4 {[%emt 0:00:05]} e5 {[%emt 0:00:24]} 9. Be3 {[%emt 0:00:05]} f4 {[%emt 0:01:58]} 10. gxf4 {[%emt 0:01:23]} Nh5 {[%emt 0:01:19]} 11. f5 {[%emt 0:00:10]} gxf5 {[%emt 0:00:39]} 12. exf5 {[%emt 0:01:03]} Bxf5 {[%emt 0:00:32]} 13. Ng5 {[%emt 0:00:59]} Nf4 {[%emt 0:02:05]} 14. Bxf4 {[%emt 0:00:05]} exf4 {[%emt 0:00:02]} 15. Bd5+ {[%emt 0:01:28]} Kh8 {[%emt 0:00:02]} 16. Nce4 {[%emt 0:00:20]} Nd4 {[%emt 0:02:54]} 17. Qh5 {[%emt 0:00:58]} Bg6 {[%emt 0:03:09]} 18. Qg4 {[%emt 0:03:08]} c6 {[%emt 0:00:07]} 19. Be6 {[%emt 0:00:17]} Nxe6 {[%emt 0:00:31]} 20. Nxe6 {[%emt 0:00:07]} Qd7 {[%emt 0:00:14]} 21. f3 {[%emt 0:02:52]} Bxe4 {[%emt 0:01:59]} 22. dxe4 {[%emt 0:01:31]} Rg8 {[%emt 0:00:12]} 23. Kh1 {[%emt 0:00:04]} Bxb2 {[%emt 0:00:14]} 24. Qh3 {[%emt 0:03:22]} Bxa1 {[%emt 0:00:29]} 25. Rxa1 {[%emt 0:00:01]} Qf7 {[%emt 0:00:41]} 26. Rd1 {[%emt 0:00:32]} Rae8 {[%emt 0:00:46]} 27. Nd4 {[%emt 0:00:15]} d5 {[%emt 0:00:27]} 28. Nf5 {[%emt 0:00:27]} Qe6 {[%emt 0:00:21]} 29. cxd5 {[%emt 0:00:07]} cxd5 {[%emt 0:00:01]} 30. Re1 {[%emt 0:01:14]} dxe4 {[%emt 0:00:08]} 31. fxe4 {[%emt 0:00:02]} Qxa2 {[%emt 0:00:15]} 32. Qc3+ {[%emt 0:00:05]} 1-0

[Event "HUN-ch Rapid 2019"]
[Site "Ajka"]
[Date "2019.07.21"]
[Round "11.19"]
[White "Szalanczi, Emil"]
[Black "Csiszar, Csaba"]
[Result "0-1"]
[ECO "B32"]
[WhiteElo "2159"]
[BlackElo "2432"]
[Annotator "NA"]
[PlyCount "118"]
[EventDate "2019.07.18"]
[EventType "swiss"]
[EventCountry "HUN"]
[SourceTitle "playchess.com"]
[Source "ChessBase"]
[SourceQuality "1"]
[TimeControl "1200+5"]

1. e4 {[%emt 0:00:01]} c5 {[%emt 0:00:01]} 2. Nf3 {[%emt 0:00:03]} Nc6 {[%emt 0:00:01]} 3. d4 {[%emt 0:00:01]} cxd4 {[%emt 0:00:01]} 4. Nxd4 {[%emt 0:00:01]} e5 {[%emt 0:00:01]} 5. Nb5 {[%emt 0:00:02]} d6 {[%emt 0:00:00]} 6. N5c3 {[%emt 0:00:17]} Be7 {[%emt 0:00:02]} 7. Bc4 {[%emt 0:00:42]} Nf6 {[%emt 0:00:02]} 8. O-O {[%emt 0:00:13]} O-O {[%emt 0:00:03]} 9. Bb3 {[%emt 0:00:50]} Bg4 {[%emt 0:00:58]} 10. Qd3 {[%emt 0:00:32]} Nh5 {[%emt 0:00:25]} 11. Nd5 {[%emt 0:00:22]} Bg5 {[%emt 0:00:04]} 12. Nbc3 {[%emt 0:00:38]} Nd4 {[%emt 0:00:12]} 13. Be3 {[%emt 0:00:39]} Bxe3 {[%emt 0:03:18]} 14. fxe3 {[%emt 0:01:04]} Nxb3 {[%emt 0:06:23]} 15. axb3 {[%emt 0:00:02]} Be6 {[%emt 0:00:00]} 16. Rf2 {[%emt 0:00:36]} a6 {[%emt 0:00:16]} 17. Raf1 {[%emt 0:00:39]} Rc8 {[%emt 0:00:12]} 18. Qe2 {[%emt 0:01:24]} g6 {[%emt 0:01:10]} 19. Nf6+ {[%emt 0:00:43]} Nxf6 {[%emt 0:00:02]} 20. Rxf6 {[%emt 0:00:02]} Kg7 {[%emt 0:00:14]} 21. Qf2 {[%emt 0:00:12]} Qe7 {[%emt 0:00:30]} 22. Qh4 {[%emt 0:00:16]} Rc7 {[%emt 0:00:58]} 23. R1f3 {[%emt 0:02:37]} h6 {[%emt 0:00:31]} 24. h3 {[%emt 0:00:40]} Re8 {[%emt 0:01:02]} 25. Nd5 {[%emt 0:00:53]} Bxd5 {[%emt 0:00:01]} 26. exd5 {[%emt 0:00:02]} Rf8 {[%emt 0:00:25]} 27. c4 {[%emt 0:00:34]} e4 {[%emt 0:00:27]} 28. Rf2 {[%emt 0:00:54]} Qe5 {[%emt 0:00:04]} 29. Qf4 {[%emt 0:01:09]} Qxf4 {[%emt 0:00:08]} 30. R2xf4 {[%emt 0:00:12]} Rd7 {[%emt 0:00:08]} 31. g4 {[%emt 0:00:25]} Rc8 {[%emt 0:00:16]} 32. h4 {[%emt 0:00:16]} b5 {[%emt 0:00:00]} 33. cxb5 {[%emt 0:00:32]} axb5 {[%emt 0:00:01]} 34. g5 {[%emt 0:00:01]} hxg5 {[%emt 0:00:01]} 35. hxg5 {[%emt 0:00:01]} Rc5 {[%emt 0:00:03]} 36. Rxe4 {[%emt 0:00:35]} Rxd5 37. Rf2 {[%emt 0:00:20]} Rxg5+ {[%emt 0:00:01]} 38. Rg2 {[%emt 0:00:11]} Re5 {[%emt 0:00:03]} 39. Rb4 {[%emt 0:00:14]} Rxe3 {[%emt 0:00:13]} 40. Rxb5 {[%emt 0:00:01]} d5 {[%emt 0:00:00]} 41. Rd2 {[%emt 0:00:09]} d4 {[%emt 0:00:01]} 42. Rb4 {[%emt 0:00:10]} d3 {[%emt 0:00:02]} 43. Kf2 {[%emt 0:00:02]} Rde7 {[%emt 0:00:07]} 44. Rb5 {[%emt 0:01:15]} Re2+ {[%emt 0:00:02]} 45. Rxe2 {[%emt 0:00:02]} Rxe2+ {[%emt 0:00:02]} 46. Kf3 {[%emt 0:00:05]} Rxb2 {[%emt 0:00:01]} 47. Ke3 {[%emt 0:00:01]} d2 {[%emt 0:00:01]} 48. Ke2 {[%emt 0:00:03]} f5 {[%emt 0:00:03]} 49. Rb8 {[%emt 0:00:22]} f4 {[%emt 0:00:21]} 50. Rb7+ {[%emt 0:00:15]} Kh6 {[%emt 0:00:04]} 51. Rf7 {[%emt 0:00:09]} Kg5 {[%emt 0:00:09]} 52. Rd7 {[%emt 0:00:17]} Kg4 {[%emt 0:00:14]} 53. Rf7 {[%emt 0:01:33]} g5 {[%emt 0:00:11]} 54. b4 {[%emt 0:00:05]} Kg3 {[%emt 0:00:07]} 55. b5 {[%emt 0:00:38]} g4 {[%emt 0:00:03]} 56. Rf5 {[%emt 0:00:09]} f3+ {[%emt 0:00:02]} 57. Kd1 {[%emt 0:00:04]} f2 {[%emt 0:00:28]} 58. Ke2 {[%emt 0:00:13]} Rxb5 {[%emt 0:00:10]} 59. Rxb5 {[%emt 0:00:16]} f1=Q+ {[%emt 0:00:04]} 0-1

[Event "HUN-ch Rapid 2019"]
[Site "Ajka"]
[Date "2019.07.21"]
[Round "11.20"]
[White "Csonka, Balazs"]
[Black "Finszter, Mate"]
[Result "1-0"]
[ECO "B27"]
[WhiteElo "2472"]
[BlackElo "2276"]
[Annotator "ChessBase"]
[PlyCount "59"]
[EventDate "2019.07.18"]
[EventType "swiss"]
[EventCountry "HUN"]
[SourceTitle "playchess.com"]
[Source "ChessBase"]
[SourceQuality "1"]
[TimeControl "1200+5"]

1. Nf3 c5 2. e4 g6 3. d4 cxd4 4. Qxd4 Nf6 5. Nc3 Nc6 {[%emt 0:00:53]} 6. Qa4 {[%emt 0:00:29]} d6 {[%emt 0:00:17]} 7. e5 {[%emt 0:00:03]} dxe5 {[%emt 0:00:17]} 8. Nxe5 {[%emt 0:00:01]} Bd7 {[%emt 0:00:03]} 9. Nxd7 {[%emt 0:00:08]} Qxd7 {[%emt 0:00:38]} 10. Be3 {[%emt 0:00:37]} Bg7 {[%emt 0:00:45]} 11. Rd1 {[%emt 0:00:07]} Qc7 {[%emt 0:02:03]} 12. g3 {[%emt 0:00:23]} O-O {[%emt 0:00:15]} 13. Bg2 {[%emt 0:00:04]} a6 {[%emt 0:03:58]} 14. O-O {[%emt 0:01:03]} b5 {[%emt 0:01:01]} 15. Qh4 {[%emt 0:01:02]} Rfd8 {[%emt 0:00:40]} 16. a4 {[%emt 0:03:23]} bxa4 {[%emt 0:05:11]} 17. Qxa4 {[%emt 0:03:20]} Rdc8 {[%emt 0:02:44]} 18. Rfe1 {[%emt 0:04:14]} e6 {[%emt 0:00:28]} 19. Bf4 {[%emt 0:00:31]} Qb6 {[%emt 0:00:09]} 20. Rd6 {[%emt 0:00:58]} Ng4 {[%emt 0:00:50]} 21. Rf1 {[%emt 0:00:52]} Nxf2 {[%emt 0:00:54]} 22. Rxf2 {[%emt 0:00:02]} Bd4 {[%emt 0:00:05]} 23. Rxd4 {[%emt 0:00:05]} Nxd4 {[%emt 0:00:07]} 24. Bxa8 {[%emt 0:00:04]} Rxa8 {[%emt 0:00:06]} 25. Be3 {[%emt 0:00:36]} e5 {[%emt 0:00:05]} 26. Qd7 {[%emt 0:01:16]} Rf8 {[%emt 0:00:07]} 27. Bh6 {[%emt 0:01:05]} Nf3+ {[%emt 0:00:18]} 28. Kg2 {[%emt 0:00:14]} Rd8 {[%emt 0:00:09]} 29. Qe7 {[%emt 0:00:31]} Ne1+ {[%emt 0:00:13]} 30. Kf1 {[%emt 0:00:10]} 1-0

[Event "HUN-ch Rapid 2019"]
[Site "Ajka"]
[Date "2019.07.21"]
[Round "12.2"]
[White "Vertetics, Attila"]
[Black "Gledura, Benjamin"]
[Result "0-1"]
[ECO "D95"]
[WhiteElo "2438"]
[BlackElo "2654"]
[Annotator "ChessBase"]
[PlyCount "52"]
[EventDate "2019.07.18"]
[EventType "swiss"]
[EventCountry "HUN"]
[SourceTitle "playchess.com"]
[Source "ChessBase"]
[SourceQuality "1"]
[TimeControl "1200+5"]

1. d4 {[%emt 0:00:01]} Nf6 {[%emt 0:00:04]} 2. Nf3 {[%emt 0:00:05]} g6 {[%emt 0:00:06]} 3. c4 {[%emt 0:00:05]} Bg7 {[%emt 0:00:04]} 4. Nc3 {[%emt 0:00:01]} d5 {[%emt 0:00:03]} 5. e3 {[%emt 0:00:02]} O-O {[%emt 0:00:14]} 6. Qb3 {[%emt 0:00:02]} e6 {[%emt 0:00:14]} 7. Bd2 {[%emt 0:00:02]} b6 {[%emt 0:00:28]} 8. Rc1 {[%emt 0:00:03]} dxc4 {[%emt 0:00:32]} 9. Bxc4 {[%emt 0:00:04]} Bb7 {[%emt 0:00:03]} 10. Be2 {[%emt 0:00:13]} Nbd7 {[%emt 0:00:32]} 11. O-O {[%emt 0:00:10]} c5 {[%emt 0:00:02]} 12. Rfd1 {[%emt 0:00:13]} Nd5 {[%emt 0:00:26]} 13. dxc5 {[%emt 0:01:39]} Nxc5 {[%emt 0:00:06]} 14. Qa3 {[%emt 0:00:01]} Qe7 {[%emt 0:01:59]} 15. Nxd5 {[%emt 0:00:17]} Bxd5 {[%emt 0:00:02]} 16. Bc3 {[%emt 0:00:02]} Rfd8 {[%emt 0:00:28]} 17. Bxg7 {[%emt 0:01:19]} Kxg7 {[%emt 0:00:02]} 18. Nd4 {[%emt 0:04:12]} e5 {[%emt 0:01:14]} 19. Nb5 {[%emt 0:00:35]} a5 {[%emt 0:00:18]} 20. f3 {[%emt 0:01:15]} Rac8 {[%emt 0:01:33]} 21. Nc3 {[%emt 0:00:36]} Bc6 {[%emt 0:00:07]} 22. Bb5 {[%emt 0:00:19]} Qg5 {[%emt 0:00:41]} 23. Bxc6 {[%emt 0:02:22]} Qxe3+ {[%emt 0:00:22]} 24. Kf1 {[%emt 0:00:03]} Rxc6 {[%emt 0:00:58]} 25. Rxd8 {[%emt 0:00:13]} Qxc1+ {[%emt 0:00:02]} 26. Rd1 {[%emt 0:00:02]} Qc2 {[%emt 0:00:17]} 0-1

[Event "HUN-ch Rapid 2019"]
[Site "Ajka"]
[Date "2019.07.21"]
[Round "12.3"]
[White "Hera, Imre Jr."]
[Black "Banusz, Tamas"]
[Result "1/2-1/2"]
[ECO "A00"]
[WhiteElo "2610"]
[BlackElo "2626"]
[Annotator "ChessBase"]
[PlyCount "68"]
[EventDate "2019.07.18"]
[EventType "swiss"]
[EventCountry "HUN"]
[SourceTitle "playchess.com"]
[Source "ChessBase"]
[SourceQuality "1"]
[TimeControl "1200+5"]

1. g3 {[%emt 0:00:02]} d5 {[%emt 0:00:02]} 2. Bg2 {[%emt 0:00:01]} g6 {[%emt 0:00:02]} 3. c4 {[%emt 0:00:04]} d4 {[%emt 0:00:33]} 4. b4 {[%emt 0:00:04]} Bg7 {[%emt 0:00:06]} 5. d3 {[%emt 0:00:01]} e5 {[%emt 0:00:04]} 6. Nf3 {[%emt 0:00:05]} Ne7 {[%emt 0:00:17]} 7. O-O {[%emt 0:00:12]} a5 {[%emt 0:00:16]} 8. b5 {[%emt 0:00:03]} c5 {[%emt 0:01:07]} 9. a4 {[%emt 0:00:05]} Ra7 {[%emt 0:00:38]} 10. Ra2 {[%emt 0:00:01]} b6 {[%emt 0:00:03]} 11. e4 {[%emt 0:01:25]} O-O {[%emt 0:01:28]} 12. Nh4 {[%emt 0:00:31]} Be6 {[%emt 0:01:29]} 13. f4 {[%emt 0:00:12]} exf4 {[%emt 0:00:01]} 14. gxf4 {[%emt 0:01:01]} f5 {[%emt 0:00:01]} 15. Nd2 {[%emt 0:01:23]} Kh8 {[%emt 0:00:45]} 16. Qe1 {[%emt 0:00:24]} Re8 {[%emt 0:03:01]} 17. e5 {[%emt 0:04:49]} Nd7 {[%emt 0:00:14]} 18. Nhf3 {[%emt 0:00:17]} Nf8 {[%emt 0:00:28]} 19. Ng5 {[%emt 0:00:10]} Kg8 {[%emt 0:03:10]} 20. Nxe6 {[%emt 0:01:15]} Nxe6 {[%emt 0:00:01]} 21. Nf3 {[%emt 0:00:05]} Kf7 {[%emt 0:00:44]} 22. h4 {[%emt 0:00:30]} h5 {[%emt 0:00:18]} 23. Bh1 {[%emt 0:00:36]} Bh6 {[%emt 0:01:11]} 24. Qg3 {[%emt 0:00:08]} Rg8 {[%emt 0:00:21]} 25. Rh2 {[%emt 0:00:43]} Ke8 {[%emt 0:00:09]} 26. Kf2 {[%emt 0:00:13]} Kd7 {[%emt 0:00:11]} 27. Ke1 {[%emt 0:00:08]} Kc7 {[%emt 0:00:23]} 28. Kd1 {[%emt 0:00:05]} Qd7 {[%emt 0:00:06]} 29. Kc2 {[%emt 0:00:06]} Raa8 {[%emt 0:00:01]} 30. Ng5 {[%emt 0:00:09]} Bxg5 {[%emt 0:00:12]} 31. Bxa8 {[%emt 0:00:33]} Rxa8 {[%emt 0:00:03]} 32. hxg5 {[%emt 0:00:05]} Rh8 {[%emt 0:00:28]} 33. Bd2 {[%emt 0:00:10]} Qc8 {[%emt 0:00:12]} 34. Rb1 {[%emt 0:01:26]} Qa8 {[%emt 0:00:09]} 1/2-1/2

[Event "HUN-ch Rapid 2019"]
[Site "Ajka"]
[Date "2019.07.21"]
[Round "12.4"]
[White "Horvath, Adam"]
[Black "Papp, Gabor"]
[Result "0-1"]
[ECO "B50"]
[WhiteElo "2517"]
[BlackElo "2587"]
[Annotator "ChessBase"]
[PlyCount "126"]
[EventDate "2019.07.18"]
[EventType "swiss"]
[EventCountry "HUN"]
[SourceTitle "playchess.com"]
[Source "ChessBase"]
[SourceQuality "1"]
[TimeControl "1200+5"]

1. e4 {[%emt 0:00:02]} c5 {[%emt 0:00:01]} 2. Nf3 {[%emt 0:00:01]} d6 {[%emt 0:00:03]} 3. c3 {[%emt 0:00:13]} Nf6 {[%emt 0:00:03]} 4. Bd3 {[%emt 0:00:01]} Nc6 {[%emt 0:00:08]} 5. O-O {[%emt 0:00:03]} Bg4 {[%emt 0:00:03]} 6. Bc2 {[%emt 0:00:04]} g6 {[%emt 0:01:03]} 7. h3 {[%emt 0:00:18]} Bxf3 {[%emt 0:00:02]} 8. Qxf3 {[%emt 0:00:02]} Bg7 {[%emt 0:00:02]} 9. d3 {[%emt 0:00:09]} O-O {[%emt 0:00:03]} 10. Nd2 {[%emt 0:00:17]} b5 {[%emt 0:00:10]} 11. Qe2 {[%emt 0:00:13]} Rb8 {[%emt 0:00:12]} 12. a3 {[%emt 0:00:20]} a5 {[%emt 0:00:13]} 13. Nf3 {[%emt 0:00:02]} Qc7 {[%emt 0:00:15]} 14. d4 {[%emt 0:00:16]} cxd4 {[%emt 0:00:29]} 15. cxd4 {[%emt 0:00:01]} Nd7 {[%emt 0:00:02]} 16. Be3 {[%emt 0:00:28]} Rfc8 {[%emt 0:00:33]} 17. Bd3 {[%emt 0:00:29]} Qb7 {[%emt 0:00:08]} 18. Rfc1 {[%emt 0:00:20]} a4 {[%emt 0:01:10]} 19. Rc2 {[%emt 0:00:15]} Na7 {[%emt 0:01:23]} 20. Rac1 {[%emt 0:00:35]} Rxc2 {[%emt 0:00:04]} 21. Rxc2 {[%emt 0:00:01]} d5 {[%emt 0:01:26]} 22. Bf4 {[%emt 0:01:01]} Rc8 {[%emt 0:00:18]} 23. Rxc8+ {[%emt 0:00:20]} Nxc8 {[%emt 0:00:10]} 24. exd5 {[%emt 0:00:30]} Qxd5 {[%emt 0:00:08]} 25. Bxb5 {[%emt 0:00:02]} Ndb6 {[%emt 0:00:14]} 26. Ba6 {[%emt 0:02:20]} e6 {[%emt 0:00:26]} 27. Qc2 {[%emt 0:01:13]} Qa8 {[%emt 0:00:52]} 28. Bb5 {[%emt 0:00:20]} Nd5 {[%emt 0:00:14]} 29. Bc6 {[%emt 0:00:27]} Qa6 {[%emt 0:00:20]} 30. Bxd5 {[%emt 0:00:26]} exd5 {[%emt 0:00:02]} 31. Be5 {[%emt 0:00:02]} Qc4 {[%emt 0:01:40]} 32. Qd2 {[%emt 0:03:42]} Ne7 {[%emt 0:00:15]} 33. Bxg7 {[%emt 0:00:46]} Kxg7 {[%emt 0:00:01]} 34. Ne5 {[%emt 0:00:05]} Qb3 {[%emt 0:00:20]} 35. Nf3 {[%emt 0:02:51]} Nf5 {[%emt 0:00:14]} 36. Qe2 {[%emt 0:00:09]} Kf8 {[%emt 0:01:50]} 37. g3 {[%emt 0:02:20]} h5 {[%emt 0:00:07]} 38. Kg2 {[%emt 0:00:08]} Nd6 {[%emt 0:00:53]} 39. Ng5 {[%emt 0:00:32]} Nc4 {[%emt 0:00:57]} 40. h4 {[%emt 0:00:05]} Qxb2 {[%emt 0:00:23]} 41. Qf3 {[%emt 0:00:05]} Qb7 {[%emt 0:00:04]} 42. Ne6+ {[%emt 0:01:03]} Kg8 {[%emt 0:00:05]} 43. Nf4 {[%emt 0:00:01]} Qb3 {[%emt 0:00:57]} 44. Qxd5 {[%emt 0:00:15]} Nxa3 {[%emt 0:00:02]} 45. Qd8+ {[%emt 0:00:06]} Kg7 {[%emt 0:00:00]} 46. Qg5 {[%emt 0:00:07]} Kh7 {[%emt 0:00:46]} 47. d5 {[%emt 0:00:15]} Nc4 {[%emt 0:00:17]} 48. Qe7 {[%emt 0:00:02]} Kg8 {[%emt 0:00:15]} 49. d6 {[%emt 0:00:07]} Nxd6 {[%emt 0:00:12]} 50. Qxd6 {[%emt 0:00:01]} a3 {[%emt 0:00:01]} 51. Qd8+ {[%emt 0:00:13]} Kg7 {[%emt 0:00:01]} 52. Qd4+ {[%emt 0:00:08]} Kg8 {[%emt 0:00:02]} 53. Nd5 {[%emt 0:00:07]} a2 {[%emt 0:00:03]} 54. Nf6+ {[%emt 0:00:02]} Kf8 {[%emt 0:00:14]} 55. Qc5+ {[%emt 0:00:21]} Kg7 {[%emt 0:00:03]} 56. Ne8+ {[%emt 0:00:02]} Kg8 {[%emt 0:00:07]} 57. Nf6+ {[%emt 0:00:08]} Kg7 {[%emt 0:00:01]} 58. Qe5 {[%emt 0:00:06]} Qb7+ {[%emt 0:01:18]} 59. Kh2 {[%emt 0:00:02]} Qf3 {[%emt 0:00:01]} 60. Ne4+ {[%emt 0:00:09]} Kg8 {[%emt 0:00:17]} 61. Nf6+ {[%emt 0:00:04]} Kf8 {[%emt 0:00:32]} 62. Nd7+ {[%emt 0:00:08]} Kg8 {[%emt 0:00:02]} 63. Nf6+ Kf8 0-1

[Event "HUN-ch Rapid 2019"]
[Site "Ajka"]
[Date "2019.07.21"]
[Round "12.5"]
[White "Czebe, Attila"]
[Black "Prohaszka, Peter"]
[Result "1/2-1/2"]
[ECO "A06"]
[WhiteElo "2436"]
[BlackElo "2598"]
[Annotator "ChessBase"]
[PlyCount "111"]
[EventDate "2019.07.18"]
[EventType "swiss"]
[EventCountry "HUN"]
[SourceTitle "playchess.com"]
[Source "ChessBase"]
[SourceQuality "1"]
[TimeControl "1200+5"]

1. Nf3 {[%emt 0:00:30]} d5 {[%emt 0:00:00]} 2. g3 {[%emt 0:00:01]} g6 {[%emt 0:00:11]} 3. c4 {[%emt 0:00:37]} c6 {[%emt 0:00:11]} 4. cxd5 {[%emt 0:00:16]} cxd5 {[%emt 0:00:01]} 5. Qa4+ {[%emt 0:00:04]} Nc6 {[%emt 0:00:58]} 6. Ne5 {[%emt 0:00:19]} Qc7 {[%emt 0:00:44]} 7. Nxc6 {[%emt 0:00:13]} Bd7 {[%emt 0:00:47]} 8. d4 {[%emt 0:02:26]} Bxc6 {[%emt 0:00:23]} 9. Qd1 {[%emt 0:00:05]} Bg7 {[%emt 0:00:08]} 10. Bg2 {[%emt 0:00:02]} Nh6 {[%emt 0:01:37]} 11. Bxh6 {[%emt 0:00:14]} Bxh6 {[%emt 0:00:02]} 12. Nc3 {[%emt 0:00:01]} e6 {[%emt 0:00:12]} 13. O-O {[%emt 0:00:10]} O-O {[%emt 0:00:04]} 14. e3 {[%emt 0:00:01]} Qb6 {[%emt 0:01:10]} 15. Qb3 {[%emt 0:01:24]} Qa5 {[%emt 0:02:00]} 16. Rfc1 {[%emt 0:00:20]} Rfc8 {[%emt 0:00:01]} 17. a3 {[%emt 0:00:36]} Bf8 {[%emt 0:00:28]} 18. Qd1 {[%emt 0:00:06]} Qd8 {[%emt 0:00:02]} 19. b4 {[%emt 0:00:08]} Rc7 {[%emt 0:00:17]} 20. Bf1 {[%emt 0:00:36]} Bd7 {[%emt 0:00:23]} 21. Bd3 {[%emt 0:01:21]} Rac8 {[%emt 0:00:12]} 22. Ne2 {[%emt 0:00:02]} a5 {[%emt 0:00:55]} 23. Rxc7 {[%emt 0:00:15]} Qxc7 {[%emt 0:00:08]} 24. Rc1 {[%emt 0:00:05]} Qb6 {[%emt 0:00:07]} 25. Rxc8 {[%emt 0:03:04]} Bxc8 {[%emt 0:00:01]} 26. Qc1 {[%emt 0:00:12]} Bd7 {[%emt 0:04:04]} 27. b5 {[%emt 0:00:01]} Bd6 {[%emt 0:00:20]} 28. a4 {[%emt 0:00:05]} Qd8 {[%emt 0:00:12]} 29. Nf4 {[%emt 0:02:14]} b6 {[%emt 0:00:12]} 30. Bf1 {[%emt 0:00:05]} Qc7 {[%emt 0:01:17]} 31. Qxc7 {[%emt 0:00:03]} Bxc7 {[%emt 0:00:01]} 32. Nd3 {[%emt 0:00:10]} f6 {[%emt 0:00:07]} 33. Bg2 {[%emt 0:00:02]} Kf7 {[%emt 0:00:07]} 34. h4 {[%emt 0:01:17]} Ke7 {[%emt 0:00:08]} 35. f4 {[%emt 0:00:10]} Be8 {[%emt 0:00:21]} 36. Kf2 {[%emt 0:00:20]} Bf7 {[%emt 0:00:02]} 37. Ke2 {[%emt 0:00:14]} h6 {[%emt 0:00:32]} 38. Kd2 {[%emt 0:00:12]} Bg8 {[%emt 0:00:29]} 39. Nf2 {[%emt 0:00:53]} e5 {[%emt 0:01:02]} 40. dxe5 {[%emt 0:00:01]} fxe5 {[%emt 0:00:00]} 41. Ng4 {[%emt 0:00:02]} d4 {[%emt 0:01:06]} 42. fxe5 {[%emt 0:01:59]} dxe3+ {[%emt 0:00:01]} 43. Nxe3 {[%emt 0:00:02]} Bxe5 {[%emt 0:00:29]} 44. Bd5 {[%emt 0:00:33]} Bxd5 {[%emt 0:01:11]} 45. Nxd5+ {[%emt 0:00:02]} Kd6 {[%emt 0:00:13]} 46. Nxb6 {[%emt 0:00:06]} Bxg3 {[%emt 0:00:02]} 47. Nc4+ {[%emt 0:00:05]} Kc5 {[%emt 0:00:06]} 48. Nxa5 {[%emt 0:00:08]} Bxh4 {[%emt 0:00:20]} 49. Nb3+ {[%emt 0:00:11]} Kb4 {[%emt 0:00:09]} 50. Nd4 {[%emt 0:00:19]} Kxa4 {[%emt 0:00:03]} 51. b6 {[%emt 0:00:04]} Bg3 {[%emt 0:00:21]} 52. b7 {[%emt 0:00:05]} h5 {[%emt 0:00:10]} 53. Ke2 {[%emt 0:00:08]} h4 {[%emt 0:00:02]} 54. Kf3 {[%emt 0:00:06]} g5 {[%emt 0:00:11]} 55. Ne6 {[%emt 0:00:18]} Kb5 {[%emt 0:00:07]} 56. Nxg5 1/2-1/2